[Event "44th Chess Olympiad Open 2022"]
[Site "Chennai"]
[Date "2022.08.02"]
[Round "5.17"]
[White "Hoffman, Alejandro"]
[Black "Lodici, Lorenzo"]
[Result "0-1"]
[WhiteElo "2390"]
[BlackElo "2553"]
[Annotator "TA"]
[PlyCount "78"]
[EventDate "2022.??.??"]
[TimeControl "60"]

{[%evp 10,78,14,0,22,9,52,36,39,43,29,0,0,0,0,0,0,0,0,-11,0,0,25,36,81,44,84,
37,46,24,22,45,31,37,36,8,44,11,58,-50,-61,-48,-36,-14,-57,-165,-164,-164,-161,
-159,-107,-218,0,-154,-146,-161,-162,-161,-160,-156,-60,-116,-35,-48,-50,-59,
-68,-330,-287,-300,-164]} 1. d4 {[%emt 0:00:05]} Nf6 {[%emt 0:00:05]} 2. Nf3 {
[%emt 0:00:14]} e6 {[%emt 0:01:11]} 3. c4 {[%emt 0:00:23]} c5 {[%emt 0:00:14]}
4. e3 {[%emt 0:00:38]} d5 {[%emt 0:00:56]} 5. cxd5 {[%emt 0:00:50]} exd5 {
[%emt 0:00:05]} 6. Be2 {[%emt 0:00:35]} a6 {[%emt 0:01:27] D30: Queen's Gambit
Declined: Systems without Nc3.} 7. O-O {[%emt 0:00:42]} c4 {[%emt 0:04:34] [#]}
8. a4 $146 {[%emt 0:24:45]} ({Predecessor:} 8. b3 b5 9. a4 Bb7 10. axb5 axb5
11. Rxa8 Bxa8 12. Ne5 Bd6 13. Bf3 Nbd7 14. bxc4 bxc4 {½-½ (42) Muse,M (2430)
-Miles,A (2560) Berlin West 1985}) 8... Nc6 {[%emt 0:03:06] White is slightly
better.} 9. b3 {[%emt 0:03:06]} cxb3 {[%emt 0:01:24]} 10. Nbd2 {[%emt 0:05:32]}
Bd6 {[%emt 0:04:35]} 11. Ba3 {[%emt 0:01:46]} b2 {[%emt 0:09:48]} 12. Bxb2 {
[%emt 0:00:08]} O-O {[%emt 0:07:06]} 13. Ne5 {[%emt 0:03:31]} Nb4 {[%emt 0:00:
00]} 14. Qb3 {[%emt 0:04:51]} Bf5 {[%emt 0:07:45]} 15. Rfc1 {[%emt 0:00:58]
Inhibits Bc2.} Qe7 {[%emt 0:09:02]} 16. a5 {[%emt 0:15:33]} b6 {[%emt 0:18:03]}
17. axb6 {[%emt 0:08:19]} Qb7 {[%emt 0:00:27]} 18. g4 {[%emt 0:15:17]} (18. Ra5
$16) 18... Be6 $14 {[%emt 0:02:47]} 19. f4 {[%emt 0:00:18][%cal Yf2f4,Yf4f5]
Black must now prevent Ba3.} Qxb6 {[%emt 0:05:37]} 20. f5 {[%emt 0:00:00]} Bc8
{[%emt 0:00:17]} 21. Ba3 {[%emt 0:05:16][%cal Yc1c6]} Rb8 $1 {[%emt 0:02:26]}
22. Bxb4 {[%emt 0:01:00]} (22. g5 $5 {[%cal Rg5f6]} Ne8 23. Bg4 $14) 22... Bxb4
{[%emt 0:00:51]} 23. Ndf3 {[%emt 0:01:32]} (23. Qa2 $5 {[%cal Re5c6]}) 23... a5
{[%emt 0:03:36]} (23... Bd6 $11 {deserves consideration.} 24. Qc2 Qb3) 24. g5 {
[%emt 0:02:50]} ({White should play} 24. Bd3 $1 $14) 24... Ne4 $15 {[%emt 0:00:
39]} 25. g6 {[%emt 0:01:29]} Bxf5 {[%emt 0:03:26] This bishop pair is nice.} (
25... hxg6 26. fxg6 Be6 27. Bd3 $14) 26. gxf7+ {[%emt 0:00:24]} Kh8 {[%emt 0:
00:00] aiming for ...Qh6.} 27. Qxd5 {[%emt 0:02:12]} (27. Nc6 $1 $15 Rxf7 28.
Nfe5 (28. Nxb8 Qg6+) (28. Qxd5 Rbf8 $17)) 27... Qh6 $19 {[%emt 0:02:37]} 28.
Ng4 {[%emt 0:01:01]} (28. Qb3 $2 Bd2 29. Qc2 Bxe3+ 30. Kf1 Nd2+ 31. Kg2 Nxf3
32. Bxf3 Bxc2 $19) 28... Qh5 {[%emt 0:00:00] Black has strong compensation.
Dancing on a razor blade.} (28... Bxg4 29. Qxe4 Bxf3 30. Qxf3 $11) 29. Nfe5 {
[%emt 0:00:32]} Rbd8 {[%emt 0:00:00]} ({But not} 29... Nc3 $6 30. Qg2 $11) (
29... Qg5 $142 $1 {...Bxg4 is the strong threat.} 30. Nc6 (30. Kh1 $2 Bxg4 31.
Qxe4 Bxe2 $19) 30... Nf6) 30. Qb7 {[%emt 0:00:30]} (30. Qa2 $17 {might work
better.}) 30... Rb8 {[%emt 0:00:00]} 31. Qd5 {[%emt 0:00:07] [#]} Qg5 $1 {
[%emt 0:00:32] Hoping for ...Bxg4.} (31... Nc3 $6 32. Qg2 $11) 32. Rf1 {
[%emt 0:00:49][%cal Ye5c6]} ({Don't play} 32. Kh1 Bxg4 33. Qxe4 Bxe2) 32...
Bxg4 {[%emt 0:00:43] Remove Defender} 33. Bxg4 {[%emt 0:00:07]} Qxe3+ {[%emt 0:
00:03]} 34. Kh1 {[%emt 0:00:17] [#]} Rbd8 {[%emt 0:01:29]} (34... Nf2+ $1 $17
35. Rxf2 Qxf2) 35. Qa2 {[%emt 0:00:24]} (35. Bd7 $1 $15) 35... Nf6 {[%emt 0:01:
01]} (35... Rxd4 $17 {Threatens to win with ...Rd2.} 36. Ng6+ hxg6) 36. Qe6 {
[%emt 0:01:21][%cal Ye5g6]} Nxg4 {[%emt 0:00:33]} 37. Qxg4 {[%emt 0:00:08]}
Rxd4 {[%emt 0:00:14]} 38. Qh5 {[%emt 0:00:14]} (38. Qf5 $15) 38... Qe4+ {
[%emt 0:00:10]} 39. Rf3 {[%emt 0:01:08][%cal Ye5g6] Strongly threatening Ng6+!}
Rd6 {[%emt 0:00:55] Prevents Ng6+. Weighted Error Value: White=0.32/Black=0.20
(precise)} (39... g6 $142 40. Qg5 Rd6) 0-1

[Event "44th Chess Olympiad Open 2022"]
[Site "Chennai"]
[Date "2022.08.02"]
[Round "5.17"]
[White "Vazquez Facundo"]
[Black "Brunello, Sabino"]
[Result "0-1"]
[WhiteElo "2336"]
[BlackElo "2520"]
[Annotator "RC"]
[PlyCount "88"]
[EventDate "2022.??.??"]
[TimeControl "60"]

1. d4 {[%emt 0:00:04]} Nf6 {[%emt 0:00:11]} 2. c4 {[%emt 0:00:10]} e6 {[%emt 0:
00:00]} 3. Nc3 {[%emt 0:00:11]} Bb4 {[%emt 0:01:56]} 4. e3 {[%emt 0:00:09]} O-O
{[%emt 0:00:33]} 5. Bd3 {[%emt 0:02:12]} d5 {[%emt 0:00:31]} 6. Nf3 {[%emt 0:
00:00]} c5 {[%emt 0:00:15]} 7. cxd5 {[%emt 0:00:38]} cxd4 {[%emt 0:06:49]} 8.
exd4 {[%emt 0:00:12]} Nxd5 {[%emt 0:00:14]} 9. O-O {[%emt 0:00:27]} Nc6 {
[%emt 0:00:09]} 10. Qc2 {[%emt 0:18:35]} h6 {[%emt 0:01:36]} 11. Rd1 {[%emt 0:
00:00]} Nce7 {[%emt 0:00:39]} 12. Ne5 {[%emt 0:03:50]} Bd7 {[%emt 0:17:19]} 13.
Bd2 {[%emt 0:05:21]} Bd6 {[%emt 0:04:30]} 14. Ne4 {[%emt 0:04:34]} Bc6 {
[%emt 0:13:35]} 15. Nxd6 {[%emt 0:17:23]} Qxd6 {[%emt 0:00:01]} 16. Qc5 {
[%emt 0:00:53]} Rfd8 {[%emt 0:00:39]} 17. b4 {[%emt 0:02:44]} Ba4 {[%emt 0:00:
00]} 18. Rdc1 {[%emt 0:08:24]} a6 {[%emt 0:02:43]} 19. Qxd6 {[%emt 0:05:06]}
Rxd6 {[%emt 0:00:03]} 20. Be4 {[%emt 0:01:05]} Rdd8 {[%emt 0:05:01]} 21. Nd3 {
[%emt 0:02:49]} Bc6 {[%emt 0:09:29]} 22. Nc5 {[%emt 0:03:20]} b6 {[%emt 0:00:
00]} 23. Nd3 {[%emt 0:01:31]} Rac8 {[%emt 0:02:44]} 24. a4 {[%emt 0:03:01]} Nc3
{[%emt 0:09:25]} 25. Bxc3 {[%emt 0:02:30]} Bxe4 {[%emt 0:00:07]} 26. Nf4 {
[%emt 0:02:19]} g5 {[%emt 0:00:41]} 27. Ne2 {[%emt 0:01:07]} Bd3 {[%emt 0:00:
00]} 28. Ng3 {[%emt 0:01:07]} Kh7 {[%emt 0:02:22]} 29. h4 {[%emt 0:01:45]} gxh4
{[%emt 0:05:20]} 30. Nh5 {[%emt 0:00:53]} Nd5 {[%emt 0:00:13]} 31. Bd2 {
[%emt 0:01:22]} Rxc1+ {[%emt 0:00:12]} 32. Rxc1 {[%emt 0:00:37]} Kg6 {[%emt 0:
00:00]} 33. g4 {[%emt 0:01:02]} Be2 {[%emt 0:01:42]} 34. Rb1 {[%emt 0:01:19]}
Bxg4 {[%emt 0:01:04]} 35. Nf4+ {[%emt 0:00:02]} Nxf4 {[%emt 0:00:51]} 36. Bxf4
{[%emt 0:00:02]} Rxd4 {[%emt 0:00:08]} 37. Be3 {[%emt 0:00:03]} Rd6 {[%emt 0:
00:00]} 38. b5 {[%emt 0:00:23]} a5 {[%emt 0:00:32]} 39. Rc1 {[%emt 0:01:38]}
Bf3 {[%emt 0:00:36]} 40. Kh2 {[%emt 0:00:34]} e5 {[%emt 0:00:16]} 41. Kh3 {
[%emt 0:31:41]} f5 {[%emt 0:30:16]} 42. Rg1+ {[%emt 0:00:00]} Kf7 {[%emt 0:00:
00]} 43. Kxh4 {[%emt 0:00:00]} f4 {[%emt 0:00:00]} 44. Bc1 {[%emt 0:00:00]} Rd1
{[%emt 0:00:26]} 0-1

[Event "44th Chess Olympiad Open 2022"]
[Site "Chennai"]
[Date "2022.08.02"]
[Round "5.18"]
[White "Kuybokarov, Temur"]
[Black "Docx, Stefan"]
[Result "1/2-1/2"]
[WhiteElo "2583"]
[BlackElo "2434"]
[Annotator "TA"]
[PlyCount "106"]
[EventDate "2022.??.??"]
[TimeControl "60"]

{[%evp 20,106,41,0,1,-20,29,0,72,-47,-49,-81,-80,-60,0,-20,25,0,59,60,52,78,71,
47,61,57,53,18,18,22,35,0,17,17,31,-75,-75,-79,-79,-108,-104,-107,-104,-121,
-121,-114,-118,-141,-158,-141,-101,-95,-118,-110,-53,-63,-8,-8,-8,-8,-8,-8,-8,
-8,-8,-8,-8,-8,-8,-8,0,0,0,0,0,0,0,0,0,0,0,0,0,0,0,0,0,0,0]} 1. e4 {[%emt 0:00:
00]} c5 {[%emt 0:00:12]} 2. Nf3 {[%emt 0:00:12]} d6 {[%emt 0:00:11]} 3. d4 {
[%emt 0:00:12]} cxd4 {[%emt 0:00:09]} 4. Nxd4 {[%emt 0:00:19]} Nf6 {[%emt 0:00:
00]} 5. Nc3 {[%emt 0:00:13]} a6 {[%emt 0:02:56]} 6. Bg5 {[%emt 0:00:06]} e6 {
[%emt 0:00:17]} 7. f4 {[%emt 0:00:14]} Be7 {[%emt 0:02:26]} 8. Qf3 {[%emt 0:00:
00]} Qc7 {[%emt 0:00:45]} 9. O-O-O {[%emt 0:00:27]} Nbd7 {[%emt 0:00:45]} 10.
g4 {[%emt 0:00:13]} h6 {[%emt 0:04:51]} 11. Bh4 {[%emt 0:00:15]} b5 {[%emt 0:
00:00] B99: Sicilian Najdorf: 6 Bg5 e6 7 f4 Be7 8 Qf3 Qc7 9 0-0-0 Nbd7.} (11...
Nxe4 12. Bxe7 Nxc3 13. Nxe6 Nxa2+ 14. Kb1 Nc3+ 15. bxc3 $16 (15. Qxc3 Qxc3 16.
bxc3 Kxe7 $15)) 12. a3 {[%emt 0:08:38]} Rb8 {[%emt 0:06:55]} (12... Bb7 {
is more appropriate.}) 13. Be1 $11 {[%emt 0:11:55]} g5 {[%emt 0:18:16] [#]} (
13... g6 $11) 14. h4 $146 {[%emt 0:25:12] White is more active.} (14. Qh3 $16)
({Predecessor:} 14. Qh3 Rg8 15. f5 e5 16. Nb3 Bb7 17. Bd3 h5 18. gxh5 g4 19.
Qf1 d5 20. exd5 Nxd5 21. Nxd5 Bxd5 {½-½ (48) Lebedev,V (2467)-Habermehl,T 
(2479) ICCF email 2013}) 14... gxf4 $15 {[%emt 0:00:18]} 15. Bh3 {[%emt 0:00:
00]} ({Don't go for} 15. Qxf4 $2 b4 16. axb4 e5 $19) 15... Ne5 {[%emt 0:24:02]}
16. Qxf4 {[%emt 0:00:21] [#]} Nfd7 {[%emt 0:00:15]} ({Better is} 16... Nexg4 $1
$15 17. Bxg4 e5 18. Qxf6 Bxf6) 17. Kb1 {[%emt 0:06:49]} Ng6 {[%emt 0:03:20]
[%csl Yf4,Yh4]} (17... Nc4 $5 {[%cal Re6e5]}) 18. Qf1 {[%emt 0:05:16][%cal
Yg4g5]} Qc4 {[%emt 0:00:47]} (18... Nb6 $11) 19. Qxc4 $14 {[%emt 0:02:58]} bxc4
{[%emt 0:00:03]} 20. Nc6 {[%emt 0:00:24]} Rb6 {[%emt 0:00:16]} 21. Nxe7 {
[%emt 0:05:30]} Kxe7 {[%emt 0:00:31]} 22. Bf2 {[%emt 0:03:36]} Rc6 {[%emt 0:00:
00]} 23. Bg3 {[%emt 0:07:27]} Nge5 {[%emt 0:00:54]} 24. Bf4 {[%emt 0:00:19]}
Ng6 {[%emt 0:02:03][%csl Yf4,Yh4]} 25. Bg3 {[%emt 0:01:40]} Nge5 {[%emt 0:00:
00]} 26. Rh2 {[%emt 0:00:38]} f6 {[%emt 0:02:23]} 27. g5 {[%emt 0:05:46]} (27.
Rhd2 $14 {stays ahead.}) 27... hxg5 $17 {[%emt 0:02:26]} 28. hxg5 {[%emt 0:00:
00]} fxg5 {[%emt 0:03:51]} 29. Bxe6 {[%emt 0:02:14]} Rxh2 {[%emt 0:00:56][%cal
Yh8h2,Yh2g2,Yg2g3,Yg3f3]} 30. Bxd7 {[%emt 0:00:07] A strong pair of Bishops.}
Rg2 $1 {[%emt 0:05:29]} 31. Bxc6 {[%emt 0:00:09]} Rxg3 {[%emt 0:00:00]} 32.
Nd5+ {[%emt 0:00:11]} Kf7 {[%emt 0:01:21]} 33. Nb6 {[%emt 0:00:40][%csl Yc8,
Yd6]} Be6 {[%emt 0:02:24]} 34. Bd5 {[%emt 0:00:09]} (34. Rxd6 $2 Rg1+ 35. Ka2
Ke7 36. Rxe6+ Kxe6 37. Bd5+ Ke7 38. Nxc4 Nxc4 39. Bxc4 g4 $19) 34... Bxd5 {
[%emt 0:03:24]} 35. exd5 {[%emt 0:01:11] Endgame KRN-KRN} Rf3 {[%emt 0:03:12]}
36. Rd4 {[%emt 0:02:02]} Rf1+ {[%emt 0:04:41]} ({Black should play} 36... c3 $1
$17 {And now ...g4 would win.} 37. Nc8 Rf1+ 38. Ka2 Rf6) 37. Ka2 $15 {[%emt 0:
00:05]} Rf4 {[%emt 0:00:07]} ({Black should try} 37... c3 $1 $15) 38. Rxf4+ $1
$11 {[%emt 0:01:23] The position is equal.} gxf4 {[%emt 0:00:03] KN-KN} 39. Nc8
{[%emt 0:00:05]} f3 {[%emt 0:00:41]} 40. Nxd6+ {[%emt 0:00:04]} Kf6 {[%emt 0:
04:19]} 41. Kb1 {[%emt 0:42:29]} Kg6 {[%emt 0:00:00] ( -> ...f2)} 42. Ne4 {
[%emt 0:00:00]} Kf5 {[%emt 0:01:36]} 43. Nf2 {[%emt 0:00:18]} Kf4 {[%emt 0:04:
35]} 44. Kc1 {[%emt 0:00:04]} Ke3 {[%emt 0:00:00]} 45. Nd1+ {[%emt 0:00:02]}
Ke2 {[%emt 0:00:34]} 46. d6 {[%emt 0:00:03]} a5 {[%emt 0:01:32]} 47. a4 {
[%emt 0:01:17]} Ke1 {[%emt 0:03:59]} 48. b4 {[%emt 0:00:00]} (48. Ne3 f2 49. d7
Nxd7 $19) 48... cxb3 $1 {[%emt 0:00:08] Overworked Piece} (48... axb4 $2 49. a5
b3 50. a6 b2+ 51. Kxb2 (51. Nxb2 $2 f2 $19) 51... Kxd1 52. a7 $18) (48... f2 $2
{[#]} 49. Nxf2 $1 axb4 50. Ng4 $1 $18) 49. cxb3 {[%emt 0:00:03]} Nd3+ {[%emt 0:
00:54]} 50. Kc2 {[%emt 0:00:06]} Nb4+ {[%emt 0:00:09]} 51. Kc1 {[%emt 0:00:04]
d7 is the strong threat.} Nd3+ {[%emt 0:00:31]} 52. Kc2 {[%emt 0:00:04]} Nb4+ {
[%emt 0:00:08]} 53. Kc1 {[%emt 0:00:04] Black must now prevent d7.} Nd3+ {
[%emt 0:00:15] Weighted Error Value: White=0.17 (very precise) /Black=0.17 
(very precise)} 1/2-1/2

[Event "44th Chess Olympiad Open 2022"]
[Site "Chennai"]
[Date "2022.08.02"]
[Round "5.18"]
[White "Dardha, Daniel"]
[Black "Smirnov, Anton"]
[Result "1/2-1/2"]
[WhiteElo "2575"]
[BlackElo "2600"]
[Annotator "TA"]
[PlyCount "103"]
[EventDate "2022.??.??"]
[TimeControl "60"]

{[%evp 9,103,25,26,33,31,12,14,13,18,16,12,0,0,0,11,25,4,0,0,0,0,-12,-9,-23,0,
0,0,0,32,33,22,11,63,64,46,50,46,52,131,125,127,127,156,162,163,171,305,262,
429,435,413,404,365,364,342,286,286,286,286,285,228,202,204,172,172,172,183,
172,172,172,172,164,157,157,157,157,157,157,150,0,8,0,0,0,0,0,0,0,43,43,43,0,0,
0,43,0]} 1. d4 {[%emt 0:00:05]} d5 {[%emt 0:00:04]} 2. c4 {[%emt 0:00:05]} e6 {
[%emt 0:00:03]} 3. Nf3 {[%emt 0:00:54]} Nf6 {[%emt 0:00:05]} 4. Nc3 {[%emt 0:
00:00]} a6 {[%emt 0:00:29]} 5. cxd5 {[%emt 0:00:31]} exd5 {[%emt 0:00:07]} 6.
Bg5 {[%emt 0:00:40] D37: Queen's Gambit Declined: 5 Bf4.} Be6 {[%emt 0:00:15]}
7. Bxf6 {[%emt 0:00:42]} Qxf6 {[%emt 0:00:07]} 8. Qb3 {[%emt 0:00:08][%csl Yb7,
Yd5] The position is equal.} Ra7 {[%emt 0:00:06]} 9. a3 {[%emt 0:02:23]} (9.
Nxd5 Qd8 10. e4 c6) 9... Qd8 {[%emt 0:00:07]} 10. e3 {[%emt 0:01:03]} c6 {
[%emt 0:07:37]} 11. Qc2 {[%emt 0:04:31]} Nd7 {[%emt 0:00:43]} 12. Bd3 {[%emt 0:
00:00] [#]} Bd6 $146 {[%emt 0:14:46]} ({Predecessor:} 12... g6 13. h4 Nf6 14.
Ng5 Qd6 15. Ne2 Bg7 16. Ng3 Bg4 17. Nf3 O-O 18. h5 Raa8 19. hxg6 hxg6 {½-½ 
(125) Hakobyan,A (2559)-Jacobson,B (2486) Saint Louis 2019}) 13. O-O {[%emt 0:
00:00]} g6 {[%emt 0:03:42]} 14. h3 {[%emt 0:06:50]} O-O {[%emt 0:00:31]} 15. e4
{[%emt 0:07:01]} dxe4 {[%emt 0:17:03]} 16. Nxe4 {[%emt 0:00:04]} Bf4 {[%emt 0:
00:00]} 17. Rfe1 {[%emt 0:01:55]} Nf6 {[%emt 0:04:50]} 18. Nc5 {[%emt 0:04:19]
Pair of Knights!} Bc8 {[%emt 0:03:08]} (18... Bd5 $5 {[%cal Rd5f3]}) 19. Rad1 {
[%emt 0:01:36]} b6 {[%emt 0:01:23]} 20. Na4 {[%emt 0:11:38]} Qc7 {[%emt 0:00:
00]} (20... b5 $11 21. Nc5 Rc7) 21. Ne5 $14 {[%emt 0:03:31]} Bd7 {[%emt 0:00:
00]} 22. g3 {[%emt 0:08:10]} Bh6 {[%emt 0:02:50]} 23. Bf1 {[%emt 0:00:56]} c5 {
[%emt 0:05:31] [#]} (23... Nd5 $14) 24. d5 $1 $16 {[%emt 0:04:19][%cal Yd4d5,
Yd5d6] White is more active.} Bf5 {[%emt 0:02:31] [#]} 25. Qe2 {[%emt 0:08:39]}
b5 {[%emt 0:07:30]} 26. d6 {[%emt 0:02:19]} Qc8 {[%emt 0:00:01]} 27. Nc3 {
[%emt 0:00:49]} Bxh3 {[%emt 0:01:17]} (27... b4 $142) 28. Qf3 {[%emt 0:04:50]}
Bxf1 {[%emt 0:01:55]} (28... Bg7 {was worth a try.} 29. Nd5 Nxd5 30. Bxh3 Qxh3
31. Qxd5 Bxe5 32. Rxe5 Rd7 33. Qxc5 f6) 29. Qxf6 $18 {[%emt 0:03:21]} Bg7 {
[%emt 0:00:10]} 30. Qf4 {[%emt 0:01:08]} Bh3 {[%emt 0:00:00]} 31. Nd5 {[%emt 0:
00:33] Ne7+ is the strong threat.} Re8 {[%emt 0:05:35]} 32. d7 {[%emt 0:01:11]}
Rxd7 {[%emt 0:00:38]} 33. Nxd7 {[%emt 0:00:14] Really sharp!} Qxd7 {[%emt 0:00:
06]} 34. Rxe8+ {[%emt 0:02:33]} Qxe8 {[%emt 0:00:05]} 35. Qh4 {[%emt 0:01:06]}
Bd7 {[%emt 0:00:14]} 36. Nf6+ {[%emt 0:03:20]} Bxf6 {[%emt 0:00:02]} 37. Qxf6 {
[%emt 0:00:04] Endgame KQR-KQB} h5 {[%emt 0:01:55]} 38. Kh2 {[%emt 0:01:33]} ({
Inferior is} 38. Qxa6 Bc6 39. Rf1 Qe4 40. Qc8+ (40. f3 Qe3+ 41. Rf2 Qe1+ 42.
Kg2 Bd7 $15) 40... Kh7 $15) 38... Qe6 {[%emt 0:02:18]} 39. Qxe6 {[%emt 0:02:02]
} Bxe6 {[%emt 0:00:01] KR-KB} 40. Rd8+ {[%emt 0:00:22]} Kg7 {[%emt 0:00:12]}
41. Ra8 {[%emt 0:30:04]} Kf6 {[%emt 0:03:34]} 42. Rxa6 {[%emt 0:00:00]
Strongly threatening Rb6.} Ke5 {[%emt 0:00:11]} 43. Rb6 {[%emt 0:00:00]} Bc4 {
[%emt 0:07:50]} 44. b3 {[%emt 0:00:00]} (44. Kg2 $16) 44... Bd3 {[%emt 0:02:19]
} 45. a4 {[%emt 0:00:00]} bxa4 {[%emt 0:06:31]} 46. bxa4 {[%emt 0:00:00]} c4 {
[%emt 0:00:58]} 47. Rc6 {[%emt 0:00:00] Black must now prevent a5.} Kd5 {
[%emt 0:00:41]} 48. Rc7 {[%emt 0:00:00] Threatens to win with a5.} Kd6 {
[%emt 0:06:26]} 49. Rc8 {[%emt 0:01:33]} Kd7 $1 {[%emt 0:00:08]} 50. Rc5 {
[%emt 0:01:33] Hoping for Kg2.} Kd6 {[%emt 0:00:06]} 51. Rc8 {[%emt 0:00:49]}
Kd7 $1 {[%emt 0:00:01]} 52. Rc5 {[%emt 0:01:48] Blacks defense is rewarded
with a draw. Weighted Error Value: White=0.09 (flawless) /Black=0.14 (very
precise)} 1/2-1/2

[Event "44th Chess Olympiad Open 2022"]
[Site "Chennai"]
[Date "2022.08.02"]
[Round "5.18"]
[White "Zhao, Zong-Yuan"]
[Black "Lenaerts, Lennert"]
[Result "1-0"]
[WhiteElo "2513"]
[BlackElo "2379"]
[Annotator "RC"]
[PlyCount "95"]
[EventDate "2022.??.??"]
[TimeControl "60"]

1. d4 {[%emt 0:00:04]} d5 {[%emt 0:00:04]} 2. c4 {[%emt 0:00:08]} c6 {[%emt 0:
00:00]} 3. Nf3 {[%emt 0:00:06]} Nf6 {[%emt 0:00:04]} 4. e3 {[%emt 0:00:08]} Bf5
{[%emt 0:01:00]} 5. Nc3 {[%emt 0:00:16]} e6 {[%emt 0:00:26]} 6. Nh4 {[%emt 0:
00:00]} Be4 {[%emt 0:00:29]} 7. f3 {[%emt 0:00:06]} Bg6 {[%emt 0:00:03]} 8. Qb3
{[%emt 0:00:04]} Qc7 {[%emt 0:00:12]} 9. cxd5 {[%emt 0:14:19]} cxd5 {[%emt 0:
00:00]} 10. Bd2 {[%emt 0:00:19]} Nc6 {[%emt 0:01:54]} 11. O-O-O {[%emt 0:00:10]
} Be7 {[%emt 0:01:29]} 12. Nxg6 {[%emt 0:00:29]} hxg6 {[%emt 0:00:05]} 13. Kb1
{[%emt 0:00:04]} a6 {[%emt 0:00:12]} 14. Rc1 {[%emt 0:00:20]} Nd7 {[%emt 0:00:
00]} 15. Bd3 {[%emt 0:13:18]} Na5 {[%emt 0:00:05]} 16. Qc2 {[%emt 0:12:39]} Nc4
{[%emt 0:22:01]} 17. e4 {[%emt 0:03:47]} dxe4 {[%emt 0:20:39]} 18. Bxc4 {
[%emt 0:34:05]} Qxc4 {[%emt 0:00:07]} 19. Nxe4 {[%emt 0:00:11]} Qxc2+ {[%emt 0:
00:00]} 20. Rxc2 {[%emt 0:00:03]} Nb6 {[%emt 0:00:04]} 21. Nc5 {[%emt 0:04:27]}
Bxc5 {[%emt 0:05:48]} 22. dxc5 {[%emt 0:00:04]} Nd5 {[%emt 0:00:04]} 23. c6 {
[%emt 0:00:31]} bxc6 {[%emt 0:00:20]} 24. Rxc6 {[%emt 0:00:02]} Kd7 {[%emt 0:
00:00]} 25. Rc4 {[%emt 0:00:34]} Rac8 {[%emt 0:01:08]} 26. Rxc8 {[%emt 0:00:17]
} Rxc8 {[%emt 0:01:46]} 27. Rc1 {[%emt 0:00:16]} Rxc1+ {[%emt 0:09:09]} 28.
Kxc1 {[%emt 0:00:13]} e5 {[%emt 0:01:57]} 29. Kc2 {[%emt 0:00:29]} f5 {[%emt 0:
00:00]} 30. Kd3 {[%emt 0:00:26]} Kc6 {[%emt 0:00:03]} 31. a3 {[%emt 0:05:10]}
Kc5 {[%emt 0:05:34]} 32. h4 {[%emt 0:02:18]} Nc7 {[%emt 0:01:16]} 33. b4+ {
[%emt 0:04:19]} Kd5 {[%emt 0:00:43]} 34. a4 {[%emt 0:00:21]} Ne6 {[%emt 0:00:
00]} 35. Be3 {[%emt 0:00:31]} Nd8 {[%emt 0:03:35]} 36. Kc3 {[%emt 0:03:21]} Nf7
{[%emt 0:00:52]} 37. b5 {[%emt 0:03:03]} axb5 {[%emt 0:00:03]} 38. axb5 {
[%emt 0:00:01]} Nd6 {[%emt 0:00:26]} 39. Kb4 {[%emt 0:00:18]} e4 {[%emt 0:00:
00]} 40. fxe4+ {[%emt 0:01:09]} fxe4 {[%emt 0:00:30]} 41. g4 {[%emt 0:30:43]}
Nb7 {[%emt 0:16:55]} 42. b6 {[%emt 0:00:00]} Kc6 {[%emt 0:01:25]} 43. Kc4 {
[%emt 0:00:00]} Nd8 {[%emt 0:02:54]} 44. Bc5 {[%emt 0:00:00]} Ne6 {[%emt 0:00:
00]} 45. Bd4 {[%emt 0:00:00]} Nxd4 {[%emt 0:01:31]} 46. Kxd4 {[%emt 0:00:00]}
Kxb6 {[%emt 0:00:06]} 47. Kxe4 {[%emt 0:00:00]} Kc6 {[%emt 0:00:15]} 48. Kf4 {
[%emt 0:00:00]} 1-0

[Event "44th Chess Olympiad Open 2022"]
[Site "Chennai"]
[Date "2022.08.02"]
[Round "5.18"]
[White "Maerevoet, Sim"]
[Black "Tan, Justin"]
[Result "1-0"]
[WhiteElo "2409"]
[BlackElo "2508"]
[Annotator "RC"]
[PlyCount "54"]
[EventDate "2022.??.??"]
[TimeControl "60"]

1. e4 {[%emt 0:00:03]} e5 {[%emt 0:01:56]} 2. Nf3 {[%emt 0:00:07]} Nf6 {
[%emt 0:00:07]} 3. Nxe5 {[%emt 0:03:48]} d6 {[%emt 0:00:39]} 4. Nd3 {[%emt 0:
00:00]} Nxe4 {[%emt 0:00:09]} 5. Qe2 {[%emt 0:00:07]} Qe7 {[%emt 0:00:07]} 6.
Nf4 {[%emt 0:00:07]} c6 {[%emt 0:03:52]} 7. f3 {[%emt 0:08:39]} Nc5 {[%emt 0:
00:00]} 8. d4 {[%emt 0:03:19]} Qxe2+ {[%emt 0:08:44]} 9. Bxe2 {[%emt 0:05:44]}
Ne6 {[%emt 0:00:08]} 10. d5 {[%emt 0:02:02]} Nxf4 {[%emt 0:24:25]} 11. Bxf4 {
[%emt 0:00:47]} Bf5 {[%emt 0:00:27]} 12. Na3 {[%emt 0:11:26]} c5 {[%emt 0:00:
00]} 13. Nc4 {[%emt 0:14:11]} Kd7 {[%emt 0:00:36]} 14. b4 {[%emt 0:07:48]} Na6
{[%emt 0:07:19]} 15. Ne3 {[%emt 0:04:36]} Nxb4 {[%emt 0:14:32]} 16. Rb1 {
[%emt 0:07:03]} g5 {[%emt 0:06:20]} 17. Bxg5 {[%emt 0:02:43]} Rg8 {[%emt 0:00:
00]} 18. h4 {[%emt 0:04:02]} h6 {[%emt 0:02:31]} 19. Nxf5 {[%emt 0:10:05]} hxg5
{[%emt 0:00:02]} 20. hxg5 {[%emt 0:00:59]} Rxg5 {[%emt 0:00:50]} 21. g4 {
[%emt 0:00:05]} Re8 {[%emt 0:03:03]} 22. Rh7 {[%emt 0:01:18]} Nxd5 {[%emt 0:00:
00]} 23. Rxf7+ {[%emt 0:02:35]} Kc6 {[%emt 0:00:01]} 24. Kd2 {[%emt 0:01:58]}
Rxe2+ {[%emt 0:04:36]} 25. Kxe2 {[%emt 0:00:04]} Nc3+ {[%emt 0:00:03]} 26. Ke3
{[%emt 0:00:34]} Nxb1 {[%emt 0:00:54]} 27. Rxf8 {[%emt 0:00:07]} Nc3 {[%emt 0:
00:00]} 1-0